Cogmind - Beta 9.4 @@@ ROGUE MODE // 2020.02.21 @ 22:53:34 Player: Honkmo Jones Result: Destroyed by S-10 Pest with Light Assault Rifle Performance ------------- Evolutions (0) 0 Regions Visited (4) 800 Robots Destroyed (21) 105 Value Destroyed (340) 340 Prototype IDs (22) 440 Alien Tech Used (0) 0 Bonus (487) 487 TOTAL SCORE: 2172 Bonus ------- Follower Combat Kills 187 Aligned with FarCom 300 Cogmind --------- Core Integrity 0/250 Matter 300/300 Energy 160/160 System Corruption 0% Temperature Cool (0) Movement Walking (105) Location -9/Mines Parts ------- > --- POWER (1) -------- Light Nuclear Core > --- PROPULSION (2) --- Aluminum Leg Potential Leg > --- UTILITY (2) ------ Sensor Array Hacking Suite > --- WEAPON (2) ------- Slug Cannon Improved Datajack > --- INVENTORY (4) ---- Improved Treads Heat Sink ECM Suite Rocket Launcher Peak State ------------ > --- POWER ------------ Light Nuclear Core > --- PROPULSION ------- Improved Treads Potential Leg > --- UTILITY ---------- Sensor Array Hacking Suite > --- WEAPON ----------- Slug Cannon Improved Datajack > --- INVENTORY -------- Light Ion Engine Heat Sink ECM Suite Rocket Launcher [Rating: 26] Favorites ----------- Power Light Ion Engine Engine Light Ion Engine Power Core Light Nuclear Core Propulsion Aluminum Leg Treads Improved Treads Leg Aluminum Leg Hover Unit Hover Unit Flight Unit Flight Unit Utility Sensor Array Device Sensor Array Storage Small Storage Unit Hackware Hacking Suite Weapon EM Pulse Gun Energy Gun EM Pulse Gun Ballistic Gun Light Assault Rifle Ballistic Cannon Slug Cannon Launcher Rocket Launcher Special Weapon Mining Laser Special Melee Weapon Improved Datajack Build | -11 -10 -10 -10 -9 ------- Run | Scr Mat Min Exi Min Slots Evolved . | . . . . . Power . | . . . . . Propulsion . | . . . . . Utility . | . . . . . Weapon . | . . . . . Parts Attached 43 | 7 28 3 1 4 Power 5 | 1 3 . . 1 Engine 4 | 1 3 . . . Core 1 | . . . . 1 Reactor . | . . . . . Propulsion 14 | 2 9 . 1 2 Treads 1 | . . . . 1 Leg 5 | 2 1 . 1 1 Wheel . | . . . . . Hover 4 | . 4 . . . Flight 4 | . 4 . . . Utility 5 | 2 3 . . . Device 3 | 1 2 . . . Storage 1 | 1 . . . . Processor . | . . . . . Hackware 1 | . 1 . . . Protection . | . . . . . Artifact . | . . . . . Weapon 19 | 2 13 3 . 1 Energy Gun 6 | 2 4 . . . Energy Cannon . | . . . . . Ballistic Gun 6 | . 6 . . . Ballistic Cannon 2 | . 1 . . 1 Launcher 1 | . . 1 . . Special Weapon 1 | . 1 . . . Impact Weapon . | . . . . . Slashing Weapon . | . . . . . Piercing Weapon . | . . . . . Special Melee Weapon 3 | . 1 2 . . Unidentified Prototypes 1 | . . . 1 . Parts Lost 10 | . 9 1 . . Power 2 | . 2 . . . Propulsion 4 | . 3 1 . . Utility . | . . . . . Weapon 4 | . 4 . . . Highest Loss Streak 4 | . 3 4 . . Average Slot Usage (%) 90 | . 93 86 85 91 Engine 12 | . 12 14 14 11 Core 1 | . . . . 2 Treads 1 | . . . . 3 Leg 8 | . 4 . 3 16 Hover 6 | . 9 14 10 . Flight 4 | . 12 . . . Device 15 | . 18 14 14 14 Storage 1 | . 3 . . . Hackware 10 | . 5 14 14 14 Energy Gun 4 | . 13 . . . Ballistic Gun 2 | . 8 1 . . Ballistic Cannon 2 | . . . . 8 Launcher 6 | . . 13 14 5 Special Melee Weapon 10 | . 4 13 14 14 Naked Turns . | . . . . . Heaviest Build 14 | 12 12 9 9 14 Greatest Support 40 | 20 20 12 30 40 Greatest Overweight (x) 1 | . 1 1 1 . Average Overweight (x) . | . . . . . Largest Inventory Capacity 6 | 6 6 4 4 4 Average Capacity 4 | 5 4 4 4 4 Most Carried 5 | 3 5 4 4 4 Average Carried 2 | . 2 3 4 3 Final Capacity 6 | 6 4 4 4 4 Final Carried 4 | 1 3 4 4 4 Class Distribution -------------------- 53% | Mutant 25% | Assassin 20% | Scavenger-Mutant Dominant Class ---------------- Scavenger-Mutant | -10/Materials Mutant | -10/Mines Mutant | -10/Exiles Assassin | -9/Mines Resources | -11 -10 -10 -10 -9 ----------- Run | Scr Mat Min Exi Min Matter Collected 629 | 270 259 38 . 62 Remotely . | . . . . . Salvage Created 661 | 323 338 . . . Parts 54 | 31 23 . . . Haulers Intercepted . | . . . . . Recyclers Shooed . | . . . . . Parts Field Recycled . | . . . . . Retrieved Matter . | . . . . . Parts Self-Destructed . | . . . . . Prevented . | . . . . . Kills | -11 -10 -10 -10 -9 ------- Run | Scr Mat Min Exi Min Combat Hostiles Destroyed 9 | . 9 . . . Guns 8 | . 8 . . . AOE 1 | . 1 . . . Classes Destroyed 6 | 3 3 . . . Worker 3 | 3 . . . . Tunneler 6 | 6 . . . . Recycler 1 | 1 . . . . Operator 2 | . 2 . . . Swarmer 3 | . 3 . . . Grunt 6 | . 6 . . . Best Kill Streak 3 | 3 3 . . . Combat Bots Only 3 | . 3 . . . Max Kills in Single Turn 1 | 1 1 . . . Gunslinging . | . . . . . Exploded 1 | . 1 . . . Melee . | . . . . . Uniques/NPCs Destroyed . | . . . . . Combat | -11 -10 -10 -10 -9 -------- Run | Scr Mat Min Exi Min Damage Taken 939 | 20 852 38 . 29 Core 253 | 20 224 . . 9 Absorbed by Shields . | . . . . . Core Remaining (%) 92 | 92 . . . . Volleys Fired 66 | 27 39 . . . Largest 2 | 2 2 . . . Hottest 140 | 80 140 . . . Shots Fired 125 | 54 71 . . . Gun 124 | 54 70 . . . Cannon . | . . . . . Launcher . | . . . . . Special 1 | . 1 . . . Kinetic 24 | . 24 . . . Thermal 19 | . 19 . . . Explosive . | . . . . . Electromagnetic 82 | 54 28 . . . Robot Hit Streak 10 | 8 10 . . . Robot Miss Streak 4 | 4 2 . . . Penetration Max . | . . . . . Secondary Targets . | . . . . . Shots Hit Robots 102 | 27 65 1 . 9 Core Hits 31 | 11 20 . . . Critical Hits 1 | . 1 . . . Critical Kills . | . . . . . Critical Parts Destroyed 1 | . 1 . . . Melee Attacks 29 | . 19 1 . 9 Impact . | . . . . . Slashing . | . . . . . Piercing . | . . . . . Sneak Attacks 26 | . 16 1 . 9 Combat Hostiles . | . . . . . Follow-up Attacks . | . . . . . Damage Inflicted 936 | 372 564 . . . Guns 865 | 347 518 . . . Cannons . | . . . . . Explosions 71 | 25 46 . . . Melee . | . . . . . Ramming . | . . . . . Kinetic 96 | . 96 . . . Thermal 242 | 25 217 . . . Explosive . | . . . . . Electromagnetic 598 | 347 251 . . . Impact . | . . . . . Slashing . | . . . . . Piercing . | . . . . . Highest Corruption . | . . . . . Average Corruption . | . . . . . Corruption Purged . | . . . . . Overload Shots . | . . . . . Overflow Damage 19 | . 19 . . . Projectiles . | . . . . . Explosions 19 | . 19 . . . Melee . | . . . . . Knockbacks . | . . . . . Impact . | . . . . . Kinetic . | . . . . . Secondary . | . . . . . Self-Inflicted Damage 74 | 20 54 . . . Shots 3 | 1 2 . . . Rammed . | . . . . . Targets Rammed . | . . . . . Kicked . | . . . . . Crushed . | . . . . . Highest Temperature 138 | 54 138 . . . Average Temperature 21 | 18 25 . . . Received Heat Transfer 213 | . 204 . . 9 Siege Activations . | . . . . . Robots Corrupted . | . . . . . Combat Hostiles . | . . . . . Parts Fried 3 | 1 2 . . . Impact Corruptions . | . . . . . Robots Melted . | . . . . . Combat Hostiles . | . . . . . Parts Melted . | . . . . . Heat Transferred 525 | 50 475 . . . Parts Sabotaged . | . . . . . Parts Stolen . | . . . . . Parts Stripped . | . . . . . Power Chain Reactions 3 | 1 2 . . . Missiles Intercepted . | . . . . . Alert | -11 -10 -10 -10 -9 ------- Run | Scr Mat Min Exi Min Peak Influence 191 | 30 191 7 . 171 Average Influence 32 | 9 42 . . 52 Maximum Alert Level . | . . . . . Low Security (%) 100 | 100 100 100 . 100 Level 1 . | . . . . . Level 2 . | . . . . . Level 3 . | . . . . . Level 4 . | . . . . . Level 5 . | . . . . . High Security . | . . . . . Max Security . | . . . . . Squads Dispatched 5 | . 5 . . . Investigation 3 | . 3 . . . Extermination . | . . . . . Reinforcement 2 | . 2 . . . Assault . | . . . . . Garrison . | . . . . . Intercept . | . . . . . Construction Impeded . | . . . . . Haulers Reinforced . | . . . . . Stealth | -11 -10 -10 -10 -9 --------- Run | Scr Mat Min Exi Min Distress Signals . | . . . . . Communications Jammed . | . . . . . Distress Signals . | . . . . . Times Spotted 31 | . 21 . . 10 Peak Tracking Total 4 | . 4 . . 4 Tactical Retreats 3 | . 2 . . 1 Traps | -11 -10 -10 -10 -9 ------- Run | Scr Mat Min Exi Min Traps Triggered . | . . . . . Indirectly . | . . . . . Trap Hack Attempts . | . . . . . Triggered . | . . . . . Disarmed . | . . . . . Reprogrammed . | . . . . . Reused 1 | . . . . 1 Traps Extracted . | . . . . . Installed 1 | . . . . 1 Triggered 1 | . . . . 1 Machines | -11 -10 -10 -10 -9 ---------- Run | Scr Mat Min Exi Min Machines Disabled 1 | . 1 . . . Max in Single Turn 1 | . 1 . . . Machines Sabotaged . | . . . . . Garrisons Compromised . | . . . . . Overloaded Fab Kills . | . . . . . Fab Network Shutdowns . | . . . . . Hacking | -11 -10 -10 -10 -9 --------- Run | Scr Mat Min Exi Min Machines Accessed 11 | . 7 1 3 . Terminals 6 | . 6 . . . Fabricators . | . . . . . Repair Stations 1 | . 1 . . . Recycling Units . | . . . . . Scanalyzers . | . . . . . Garrison Access . | . . . . . Total Hacks 53 | . 27 1 25 . Successful 38 | . 12 1 25 . Failed 15 | . 15 . . . Catastrophic 2 | . 2 . . . Database Lockouts . | . . . . . Manual 21 | . 17 . 4 . Terminals 25 | . 25 . . . Fabricators . | . . . . . Repair Stations 2 | . 2 . . . Recycling Units . | . . . . . Scanalyzers . | . . . . . Garrison Access . | . . . . . Terminal Hacks 33 | . 7 1 25 . Record 26 | . 2 . 24 . Open Door 1 | . . 1 . . Branch Access Points 1 | . 1 . . . Emergency Access Points 1 | . 1 . . . Terminal Index 1 | . 1 . . . Recall Investigation 1 | . 1 . . . Zone Layout 1 | . 1 . . . EX-Prototype ID Bank 1 | . . . 1 . Fabricator Hacks . | . . . . . Repair Station Hacks . | . . . . . Recycling Unit Hacks . | . . . . . Scanalyzer . | . . . . . Garrison Access Hacks . | . . . . . Unauthorized Hacks 13 | . 13 . . . Terminals 4 | . 4 . . . Assimilate 1 | . 1 . . . Botnet 2 | . 2 . . . Operators 1 | . 1 . . . Fabricators . | . . . . . Repair Stations 1 | . 1 . . . Mechanics 1 | . 1 . . . Recycling Units . | . . . . . Scanalyzers . | . . . . . Garrison Access . | . . . . . Data Cores Recovered 1 | . 1 . . . Used 1 | . 1 . . . Hacking Detections 5 | . 5 . . . Full Trace Events 4 | . 4 . . . Feedback Events . | . . . . . Feedback Blocked . | . . . . . Robot Schematics Acquired . | . . . . . Robots Built . | . . . . . Matter . | . . . . . Time . | . . . . . Total Robot Build Rating . | . . . . . Part Schematics Acquired . | . . . . . Parts Built . | . . . . . Matter . | . . . . . Time . | . . . . . Total Part Build Rating . | . . . . . Parts Repaired . | . . . . . Time . | . . . . . Parts Recycled . | . . . . . Recycled Matter . | . . . . . Retrieved Matter . | . . . . . Retrieved Components . | . . . . . Parts Scanalyzed . | . . . . . Part Schematics Acquired . | . . . . . Parts Damaged . | . . . . . Bothacking | -11 -10 -10 -10 -9 ------------ Run | Scr Mat Min Exi Min Used RIF Installer . | . . . . . Robots Hacked 6 | . 5 . . 1 Non-combat 5 | . 4 . . 1 Combat 1 | . 1 . . . Robot Hacks Applied 8 | . 7 . . 1 parse_system 3 | . 3 . . . no_distress 5 | . 4 . . 1 Relay Couplers Released . | . . . . . Robots Rewired . | . . . . . Allies Hacked . | . . . . . Hacks Repelled . | . . . . . Allies | -11 -10 -10 -10 -9 -------- Run | Scr Mat Min Exi Min Total Allies 5 | . . 3 . 2 Largest Group 5 | . . 3 3 5 Highest-Rated Group 85 | . . 40 40 85 Highest-Rated Ally 31 | . . 16 16 31 Total Orders 7 | . . . . 7 GOTO 3 | . . . . 3 FOLLOW 2 | . . . . 2 AID 2 | . . . . 2 Ally Attacks 29 | . . . . 29 Total Damage 427 | . . . . 427 Kills 11 | . . . . 11 Allies Corrupted . | . . . . . Allies Melted . | . . . . . Intel | -11 -10 -10 -10 -9 ------- Run | Scr Mat Min Exi Min Robot Analysis Total . | . . . . . Derelict Logs Recovered 2 | . . 1 . 1 Drone Launches . | . . . . . Drone Recoveries . | . . . . . Exploration | -11 -10 -10 -10 -9 ------------- Run | Scr Mat Min Exi Min Turns Passed 4340 | 1082 1118 303 715 1122 Spaces Moved 3000 | 523 954 209 610 704 Core 11 | 11 . . . . Treads . | . . . . . Legs 1512 | 512 100 . 196 704 Wheels . | . . . . . Hover 1111 | . 488 209 414 . Flight 366 | . 366 . . . Fastest Speed 37 | 50 37 56 90 90 Average Speed 90 | 118 55 109 110 93 Slowest Speed 150 | 120 150 120 120 105 Overloaded Moves . | . . . . . Propulsion Burnouts . | . . . . . Robots Hopped . | . . . . . Cave-ins Triggered . | . . . . . Exploration Rate (%) 73 | 35 97 55 91 90 Regions Visited 4 Branch Regions 3 Pre-discovered Areas 2 | . . . 1 1 Known Exits Taken 2 | . 1 1 . . Unknown Exits Taken 2 | 1 . . 1 . Scrap Searched 2 | . . 1 . 1 Spaces Dug . | . . . . . Terrain Destroyed 12 | 7 5 . . . Melee . | . . . . . Projectile 1 | . 1 . . . AOE 11 | 7 4 . . . Actions | -11 -10 -10 -10 -9 --------- Run | Scr Mat Min Exi Min Total 4484 | 931 1454 282 651 1166 Wait 1281 | 367 368 64 40 442 Move 2996 | 522 953 208 609 704 Hop . | . . . . . Pick Up 43 | 8 28 4 . 3 Fast Attach 3 | . 1 . 1 1 Attach 19 | 7 11 1 . . Detach . | . . . . . Swap 21 | . 16 2 . 3 Drop 25 | . 19 2 1 3 Fire 66 | 27 39 . . . Melee 29 | . 19 1 . 9 Ram . | . . . . . Kick . | . . . . . Crush . | . . . . . Escape Stasis . | . . . . . Rewire . | . . . . . Trap 1 | . . . . 1 Miscellaneous . | . . . . . Route ------- -11/Scrapyard -10/Materials (discovered 4 exits: [*Mat x3] / *Min) -10/Mines -10/Exiles (discovered 2 exits: [*Min x2]) -9/Mines History --------- Turn | Location | Event 3 | -11/Scrapyard | Discovered new exit (range 15) 1083 | -11/Scrapyard | Entered Materials 1084 | -10/Materials | Build established: Mutant 1198 | -10/Materials | Discovered new exit (range 16) 1320 | -10/Materials | Core integrity fell below 50% 1532 | -10/Materials | Discovered new exit (range 10) 1572 | -10/Materials | Build established: Scavenger-Mutant 1592 | -10/Materials | Discovered new exit (range 9) 1612 | -10/Materials | Identified exit to Mines 1906 | -10/Materials | Core integrity fell below 20% 2010 | -10/Materials | Discovered new exit (range 4) 2201 | -10/Materials | Entered Mines 2211 | -10/Mines | Received a Rocket Launcher from a helpful Derelict 2224 | -10/Mines | Met a Derelict who couldn't figure out how to use a Trap Extractor 2255 | -10/Mines | Lost 4 parts (1p2n1w) 2278 | -10/Mines | Assisted by bots powering up and referring to "LRC-V3" 2355 | -10/Mines | Identified exit to Exiles 2415 | -10/Mines | Found a hidden stash of uninstalled traps 2461 | -10/Mines | Build established: Mutant 2490 | -10/Mines | Deemed a non-threat by the Exiles lab entrance 2504 | -10/Mines | Entered Exiles 2504 | -10/Exiles | Accompanied by 3 allies 2545 | -10/Exiles | Discovered new exit (range 14) 2575 | -10/Exiles | Met 8R-AWN 2594 | -10/Exiles | Met EX-HEX 2640 | -10/Exiles | Met EX-DEC 2654 | -10/Exiles | Learned location of Zion (-7) 2721 | -10/Exiles | Visited The Gauntlet 2890 | -10/Exiles | Discovered new exit (range 14) 2960 | -10/Exiles | Met EX-BIN 2976 | -10/Exiles | Aligned with FarCom system 2978 | -10/Exiles | Given EX-Vault access code 3017 | -10/Exiles | Opened EX-Vault 3023 | -10/Exiles | Found Prototype Leg 3023 | -10/Exiles | Identified Potential Leg 3079 | -10/Exiles | Warned to stay clear of 0b10 Research branches 3219 | -10/Exiles | Left Exiles lab with Potential Leg 3219 | -10/Exiles | Entered Mines 3219 | -9/Mines | Accompanied by 3 allies 3521 | -9/Mines | Build established: Assassin 3571 | -9/Mines | A weapon hastily lodged in a ceiling crevice suddenly fell to the ground 4341 | -9/Mines | Destroyed by S-10 Pest with Light Assault Rifle Last Messages --------------- Sneak attack on K-01 Serf. Jacked K-01 Serf... Acquired Lgt. Nuclear Core. Dropped Lgt. Ion Engine. Acquired 10 matter. G-34 Mercenary destroyed. S-10 Pest destroyed. U-05 Engineer lays Concrete. S-10 Pest destroyed. Sneak attack on U-05 Engineer. Jacked U-05 Engineer... Acquired Aluminum Leg. Sneak attack on U-05 Engineer. Jacked U-05 Engineer... Acquired 10 matter. Sneak attack on U-05 Engineer. Jacked U-05 Engineer... K-01 Serf cleans the Laser Drill. Sneak attack on K-01 Serf. Jacked K-01 Serf... Map ----- +----------------------------------------------------+ | | | | | | | | | | | | | | | | | | | ?????????????????????????????????????????????????? | | ?????????????????????????#??????????#####????????? | | ??????????????????????s?? ??????????# ########## | | ???####????????????????s?s??????????# ## | | ??## ##????????????????? ??????????### | | ?## ##????????????????s????????????## ### | | ?# #######?????????? ????????????## ##?? | | ## ##????????? ???????????## ###??? | | #######??# #??????????# ##????? | | ## #??# #??????????# #?????? | | # #### ###### #??# #??????????# #?????? | | # ##??#####????# #??# #??????????# ##????? | | # ##????????????# #??# #??????????## ##???# | | ## ##?????????????# #??# #???????????## #???# | | ?####??????????????# #??# #????????????## ##??# | | ???????????????????# #### ######????????# ##?# | | ???????????????????# % %g@ #????????# ### | | ???????????????????###### #????????## ## | | ????????????????????????##### #?????????# """ # | | ??????????################### #????????## """ | | ??????????#==%*%%%%!==[ % ? ########## """ | | ??????????#%############ #### # | | ??????????#[#??????????# #??# ## # | | #########?# #??????????# #??############ ### # | | #?#%#??????????#?#????????????# ##?# # | | #?#=#????####??# #????????????# ##??# | | """ """ #?#=#??### ##?# #????????????## ##???# | | """ """ #?#%#?## #?# #?????????????####????### | | """ """ ###!### #?# ##### #???????????????? | | =## ### #??????????????? | | ##### + ##### #?????????????? | | #?## ## ## ##??## ??????????????????? | | ########### #### ## #???? ??????????????????? | | ?????????# #??#### #???? ??????????????????? | | ##???????# #?????# #????# ??????????####??## | | ##?????## #?????# #????# ???####??## #### | | #?????# ##?????# #????# ??## #### | | #?????# ##???#### #???## ?## | | ##?????# #????# ##### ## | | ######??## #????# #### | | #???# #????# #?# ## | +----------------------------------------------------+ Best States ------------- Heat Dissipation 35 Energy Generation 14 Energy Capacity 250 Matter Stores 300 Matter Capacity 300 Sight Range 16 Robot Scan Range 10 Terrain Scan Range 16 Terrain Scan Density 10 Evasion (%) 62 Recoil Reduction 1 Offensive Hacking 10 Item Schematics ----------------- None Robot Schematics ------------------ None Fabricated ------------ Nothing Alien Tech Used ----------------- None Achievements -------------- Dynamic Key root@ Challenges ------------ None Game ------ Seed SwordLobotomyMaul Manual? 0 Play Time 00:49:03 Cumulative 5.1 hours Start 2020.02.21 @ 22:05:03 End 2020.02.21 @ 22:53:34 Sessions 1 Manual Loads 0 Difficulty Rogue Special Mode None Game No. 14 Rogue 14 Adventurer 0 Explorer 0 Win Type - Total 0 Types 0/0/0/0/0/0/0 Lore% 12 Gallery% 11 Achievement% 12 Wizard Run 0 Options --------- ASCII 0 Keyboard 0 Movement Mouse Keybinds 0 Fullscreen 1 Font 12/Smallcaps Map View 83x54 Tactical HUD 0 Map Filters NONE Filters NONE Steam 1 RUN: b91a79f5-9b0c-4c78-95d9-3fe1edcbda6b